[Event "SM-blixten 2025"]
[Site "Uppsala, Sweden"]
[Date "2025.07.03"]
[Round "8.6"]
[White "Crevatin, Leo"]
[Black "Religa, Marek"]
[Result "1-0"]
[TimeControl "3 min + 2 sec increment starting from move 1"]
[WhiteTitle "FM"]
[WhiteElo "2248"]
[BlackElo "2227"]

1. d4 {[%clk 00:03:03]} {[%emt 00:07:55]} g6 {[%clk 00:03:04]} {[%emt
00:00:01]} 2. c4 {[%clk 00:03:04]} {[%emt 00:00:01]} Bg7 {[%clk 00:03:05]}
{[%emt 00:00:01]} 3. Nc3 {[%clk 00:03:06]} d6 {[%clk 00:03:04]} {[%emt
00:00:03]} 4. e4 {[%clk 00:03:06]} {[%emt 00:00:01]} e5 {[%clk 00:03:05]}
{[%emt 00:00:01]} 5. Be3 {[%clk 00:03:06]} {[%emt 00:00:03]} Nc6 {[%clk
00:02:53]} {[%emt 00:00:14]} 6. Nge2 {[%clk 00:03:06]} {[%emt 00:00:01]} Nf6
{[%clk 00:02:43]} {[%emt 00:00:12]} 7. f3 {[%clk 00:02:51]} {[%emt 00:00:17]}
O-O {[%clk 00:02:43]} {[%emt 00:00:02]} 8. Qd2 {[%clk 00:02:50]} {[%emt
00:00:03]} Nd7 {[%clk 00:02:43]} {[%emt 00:00:02]} 9. d5 {[%clk 00:02:48]}
{[%emt 00:00:05]} Ne7 {[%clk 00:02:44]} 10. g4 {[%clk 00:02:48]} {[%emt
00:00:01]} f5 {[%clk 00:02:45]} {[%emt 00:00:02]} 11. gxf5 {[%clk 00:02:48]}
gxf5 {[%clk 00:02:46]} {[%emt 00:00:01]} 12. O-O-O {[%clk 00:02:49]} {[%emt
00:00:01]} f4 {[%clk 00:02:27]} {[%emt 00:00:22]} 13. Bf2 {[%clk 00:02:50]} a6
{[%clk 00:02:28]} {[%emt 00:00:01]} 14. Kb1 {[%clk 00:02:38]} {[%emt 00:00:13]}
Nc5 {[%clk 00:02:26]} {[%emt 00:00:05]} 15. Nc1 {[%clk 00:02:37]} {[%emt
00:00:03]} Bd7 {[%clk 00:02:27]} {[%emt 00:00:01]} 16. Rg1 {[%clk 00:02:30]}
{[%emt 00:00:08]} Qe8 {[%clk 00:02:20]} {[%emt 00:00:10]} 17. Nb3 {[%clk
00:02:12]} {[%emt 00:00:21]} Na4 {[%clk 00:02:12]} {[%emt 00:00:09]} 18. c5
{[%clk 00:02:09]} {[%emt 00:00:04]} Nc8 {[%clk 00:01:52]} {[%emt 00:00:22]} 19.
Be2 {[%clk 00:02:05]} {[%emt 00:00:06]} Rf6 {[%clk 00:01:29]} {[%emt 00:00:25]}
20. c6 {[%clk 00:01:54]} {[%emt 00:00:13]} Nxc3+ {[%clk 00:01:29]} {[%emt
00:00:03]} 21. Qxc3 {[%clk 00:01:54]} {[%emt 00:00:02]} bxc6 {[%clk 00:01:28]}
{[%emt 00:00:02]} 22. dxc6 {[%clk 00:01:55]} Bxc6 {[%clk 00:01:17]} {[%emt
00:00:13]} 23. Na5 {[%clk 00:01:51]} {[%emt 00:00:06]} Bb5 {[%clk 00:01:16]}
{[%emt 00:00:04]} 24. Qxc7 {[%clk 00:01:39]} {[%emt 00:00:14]} Rf7 {[%clk
00:01:16]} {[%emt 00:00:02]} 25. Qc2 {[%clk 00:01:36]} {[%emt 00:00:04]} Rb8
{[%clk 00:01:08]} {[%emt 00:00:11]} 26. Nc4 {[%clk 00:01:34]} {[%emt 00:00:03]}
Qc6 {[%clk 00:01:01]} {[%emt 00:00:09]} 27. Rge1 {[%clk 00:01:27]} {[%emt
00:00:09]} Rc7 {[%clk 00:00:50]} {[%emt 00:00:12]} 28. Rc1 {[%clk 00:01:12]}
{[%emt 00:00:17]} d5 {[%clk 00:00:39]} {[%emt 00:00:13]} 29. exd5 {[%clk
00:00:58]} {[%emt 00:00:16]} Qxd5 {[%clk 00:00:40]} 30. Red1 {[%clk 00:01:00]}
Qf7 {[%clk 00:00:24]} {[%emt 00:00:19]} 31. Rd8+ {[%clk 00:00:59]} {[%emt
00:00:02]} Bf8 {[%clk 00:00:25]} {[%emt 00:00:01]} 32. Rg1+ {[%clk 00:00:49]}
{[%emt 00:00:12]} Kh8 {[%clk 00:00:26]} {[%emt 00:00:01]} 33. Nxe5 {[%clk
00:00:38]} {[%emt 00:00:13]} Qe7 {[%clk 00:00:11]} {[%emt 00:00:17]} 34. Qxc7
{[%clk 00:00:36]} {[%emt 00:00:04]} Bd3+ {[%clk 00:00:06]} {[%emt 00:00:08]} 35.
Bxd3 {[%clk 00:00:31]} {[%emt 00:00:06]} Rxb2+ {[%clk 00:00:07]} {[%emt
00:00:02]} 36. Kxb2 {[%clk 00:00:24]} {[%emt 00:00:08]} Qxe5+ {[%clk 00:00:05]}
{[%emt 00:00:05]} 37. Qxe5# {[%emt 00:00:01]} 1-0

[Event "SM-blixten 2025"]
[Site "Uppsala, Sweden"]
[Date "2025.07.03"]
[Round "10.2"]
[White "Crevatin, Leo"]
[Black "Olund, Joar"]
[Result "1/2-1/2"]
[TimeControl "3 min + 2 sec increment starting from move 1"]
[WhiteTitle "FM"]
[BlackTitle "FM"]
[WhiteElo "2248"]
[BlackElo "2369"]

1. d4 {[%clk 00:03:02]} {[%emt 00:00:02]} d5 {[%clk 00:03:03]} {[%emt
00:00:02]} 2. Nf3 {[%clk 00:03:02]} {[%emt 00:00:01]} Nf6 {[%clk 00:03:04]}
{[%emt 00:00:01]} 3. c4 {[%clk 00:03:02]} {[%emt 00:00:03]} dxc4 {[%clk
00:03:05]} {[%emt 00:00:01]} 4. e3 {[%clk 00:03:03]} e6 {[%clk 00:03:07]} 5.
Bxc4 {[%clk 00:03:03]} {[%emt 00:00:02]} c5 {[%clk 00:03:08]} {[%emt 00:00:01]}
6. Nc3 {[%clk 00:03:02]} {[%emt 00:00:03]} a6 {[%clk 00:03:09]} {[%emt
00:00:01]} 7. e4 {[%clk 00:03:01]} {[%emt 00:00:03]} b5 {[%clk 00:03:09]}
{[%emt 00:00:01]} 8. Bb3 {[%clk 00:03:02]} {[%emt 00:00:02]} Bb7 {[%clk
00:03:00]} {[%emt 00:00:11]} 9. e5 {[%clk 00:02:57]} {[%emt 00:00:07]} Ne4
{[%clk 00:02:41]} {[%emt 00:00:21]} 10. Nxe4 {[%clk 00:02:51]} {[%emt
00:00:08]} Bxe4 {[%clk 00:02:41]} {[%emt 00:00:02]} 11. Qe2 {[%clk 00:02:51]}
{[%emt 00:00:01]} Bg6 {[%clk 00:02:26]} {[%emt 00:00:17]} 12. Bg5 {[%clk
00:02:41]} {[%emt 00:00:12]} Be7 {[%clk 00:02:27]} {[%emt 00:00:01]} 13. Bxe7
{[%clk 00:02:38]} {[%emt 00:00:06]} Qxe7 {[%clk 00:02:28]} {[%emt 00:00:01]} 14.
dxc5 {[%clk 00:02:33]} {[%emt 00:00:07]} Qxc5 {[%clk 00:02:25]} {[%emt
00:00:04]} 15. O-O {[%clk 00:02:32]} {[%emt 00:00:03]} O-O {[%clk 00:01:44]}
{[%emt 00:00:44]} 16. Rac1 {[%clk 00:02:34]} Qe7 {[%clk 00:01:33]} {[%emt
00:00:12]} 17. Bc2 {[%clk 00:02:33]} {[%emt 00:00:03]} Ra7 {[%clk 00:01:23]}
{[%emt 00:00:12]} 18. Bxg6 {[%clk 00:02:32]} {[%emt 00:00:04]} hxg6 {[%clk
00:01:23]} {[%emt 00:00:02]} 19. Rfd1 {[%clk 00:02:28]} {[%emt 00:00:05]} Rd8
{[%clk 00:01:22]} {[%emt 00:00:03]} 20. Rxd8+ {[%clk 00:02:19]} {[%emt
00:00:12]} Qxd8 {[%clk 00:01:23]} {[%emt 00:00:01]} 21. Rd1 {[%clk 00:02:20]}
{[%emt 00:00:01]} 1/2-1/2

[Event "SM-blixten 2025"]
[Site "Uppsala, Sweden"]
[Date "2025.07.03"]
[Round "11.8"]
[White "Nygren, Kim"]
[Black "Hakanson, Josef"]
[Result "1/2-1/2"]
[TimeControl "3 min + 2 sec increment starting from move 1"]
[WhiteTitle "CM"]
[WhiteElo "2173"]
[BlackElo "2131"]

1. e4 {[%clk 00:03:01]} {[%emt 00:00:03]} e5 {[%clk 00:03:03]} {[%emt
00:00:01]} 2. Nf3 {[%clk 00:03:02]} {[%emt 00:00:01]} Nf6 {[%clk 00:03:04]}
{[%emt 00:00:01]} 3. Nc3 {[%clk 00:02:57]} {[%emt 00:00:07]} Nc6 {[%clk
00:03:05]} {[%emt 00:00:01]} 4. d4 {[%clk 00:02:57]} {[%emt 00:00:02]} exd4
{[%clk 00:03:00]} {[%emt 00:00:07]} 5. Nd5 {[%clk 00:02:52]} {[%emt 00:00:07]}
Be7 {[%clk 00:02:59]} {[%emt 00:00:03]} 6. Nxd4 {[%clk 00:02:43]} {[%emt
00:00:11]} Nxd5 {[%clk 00:02:59]} {[%emt 00:00:02]} 7. exd5 {[%clk 00:02:44]}
{[%emt 00:00:01]} Nxd4 {[%clk 00:02:59]} {[%emt 00:00:02]} 8. Qxd4 {[%clk
00:02:45]} {[%emt 00:00:01]} O-O {[%clk 00:02:59]} {[%emt 00:00:02]} 9. Be3
{[%clk 00:02:28]} {[%emt 00:00:19]} Bf6 {[%clk 00:03:00]} {[%emt 00:00:02]} 10.
Qb4 {[%clk 00:02:28]} {[%emt 00:00:01]} a5 {[%clk 00:02:58]} {[%emt 00:00:05]}
11. Qa3 {[%clk 00:02:21]} {[%emt 00:00:08]} d6 {[%clk 00:02:56]} {[%emt
00:00:04]} 12. Bd3 {[%clk 00:02:16]} {[%emt 00:00:07]} Bg5 {[%clk 00:02:53]}
{[%emt 00:00:05]} 13. O-O {[%clk 00:02:11]} {[%emt 00:00:07]} Bxe3 {[%clk
00:02:53]} {[%emt 00:00:01]} 14. fxe3 {[%clk 00:02:12]} {[%emt 00:00:01]} Qg5
{[%clk 00:02:54]} {[%emt 00:00:01]} 15. Qc3 {[%clk 00:02:02]} {[%emt 00:00:12]}
Qxe3+ {[%clk 00:02:46]} {[%emt 00:00:10]} 16. Kh1 {[%clk 00:02:03]} Qc5 {[%clk
00:02:46]} {[%emt 00:00:02]} 17. Qd2 {[%clk 00:02:03]} {[%emt 00:00:02]} Bd7
{[%clk 00:02:42]} {[%emt 00:00:06]} 18. Rf4 {[%clk 00:02:00]} {[%emt 00:00:05]}
f5 {[%clk 00:02:30]} {[%emt 00:00:14]} 19. Rc4 {[%clk 00:01:53]} {[%emt
00:00:09]} Qb6 {[%clk 00:02:29]} {[%emt 00:00:02]} 20. Qc3 {[%clk 00:01:43]}
{[%emt 00:00:13]} c6 {[%clk 00:02:21]} {[%emt 00:00:11]} 21. dxc6 {[%clk
00:01:29]} {[%emt 00:00:16]} bxc6 {[%clk 00:02:21]} {[%emt 00:00:02]} 22. Rd4
{[%clk 00:01:20]} {[%emt 00:00:10]} d5 {[%clk 00:02:15]} {[%emt 00:00:09]} 23.
Rf1 {[%clk 00:01:17]} {[%emt 00:00:05]} Rae8 {[%clk 00:02:15]} {[%emt
00:00:02]} 24. a3 {[%clk 00:01:15]} {[%emt 00:00:04]} Be6 {[%clk 00:02:11]}
{[%emt 00:00:05]} 25. b4 {[%clk 00:01:11]} {[%emt 00:00:06]} axb4 {[%clk
00:02:12]} {[%emt 00:00:02]} 26. Rxb4 {[%clk 00:01:12]} Qc7 {[%clk 00:02:06]}
{[%emt 00:00:07]} 27. Qc5 {[%clk 00:01:10]} {[%emt 00:00:05]} Bd7 {[%clk
00:02:05]} {[%emt 00:00:04]} 28. Rd4 {[%clk 00:01:06]} {[%emt 00:00:06]} Qe5
{[%clk 00:02:05]} {[%emt 00:00:01]} 29. c4 {[%clk 00:00:56]} {[%emt 00:00:12]}
Be6 {[%clk 00:01:53]} {[%emt 00:00:14]} 30. Rh4 {[%clk 00:00:42]} {[%emt
00:00:16]} g6 {[%clk 00:01:49]} {[%emt 00:00:06]} 31. a4 {[%clk 00:00:36]}
{[%emt 00:00:08]} Qf6 {[%clk 00:01:49]} {[%emt 00:00:02]} 32. Rhf4 {[%clk
00:00:31]} {[%emt 00:00:07]} dxc4 {[%clk 00:01:49]} {[%emt 00:00:02]} 33. Bxc4
{[%clk 00:00:32]} {[%emt 00:00:01]} Bxc4 {[%clk 00:01:50]} {[%emt 00:00:02]} 34.
Rxc4 {[%clk 00:00:30]} {[%emt 00:00:04]} Re6 {[%clk 00:01:48]} {[%emt
00:00:03]} 35. a5 {[%clk 00:00:31]} {[%emt 00:00:02]} Qe5 {[%clk 00:01:48]}
{[%emt 00:00:02]} 36. Qb6 {[%clk 00:00:21]} {[%emt 00:00:11]} Qe2 {[%clk
00:01:47]} {[%emt 00:00:03]} 37. Rcc1 {[%clk 00:00:21]} {[%emt 00:00:03]} f4
{[%clk 00:01:48]} 38. Qb3 {[%clk 00:00:19]} {[%emt 00:00:04]} Kg7 {[%clk
00:01:39]} {[%emt 00:00:11]} 39. h3 {[%clk 00:00:17]} {[%emt 00:00:04]} Re3
{[%clk 00:01:38]} {[%emt 00:00:03]} 40. Qb7+ {[%clk 00:00:13]} {[%emt
00:00:06]} Rf7 {[%clk 00:01:38]} {[%emt 00:00:02]} 41. Qxc6 {[%clk 00:00:13]}
{[%emt 00:00:02]} f3 {[%clk 00:01:39]} {[%emt 00:00:02]} 42. gxf3 {[%clk
00:00:08]} {[%emt 00:00:07]} Rexf3 {[%clk 00:01:39]} {[%emt 00:00:01]} 43. Rxf3
{[%clk 00:00:07]} {[%emt 00:00:04]} Rxf3 {[%clk 00:01:38]} {[%emt 00:00:03]} 44.
Qd7+ {[%clk 00:00:03]} {[%emt 00:00:06]} Kh6 {[%clk 00:01:38]} {[%emt
00:00:02]} 45. a6 {[%clk 00:00:03]} {[%emt 00:00:01]} Qxa6 {[%clk 00:01:24]}
{[%emt 00:00:16]} 46. Qg4 {[%clk 00:00:04]} {[%emt 00:00:01]} Qf6 {[%clk
00:01:21]} {[%emt 00:00:04]} 47. Rg1 {[%clk 00:00:04]} {[%emt 00:00:04]} Rf4
{[%clk 00:01:21]} {[%emt 00:00:02]} 48. Qg3 {[%clk 00:00:04]} {[%emt 00:00:02]}
Qc6+ {[%clk 00:01:22]} 49. Kh2 {[%clk 00:00:04]} {[%emt 00:00:02]} Rf3 {[%clk
00:01:22]} {[%emt 00:00:01]} 50. Qg5+ {[%clk 00:00:04]} {[%emt 00:00:03]} Kg7
{[%clk 00:01:22]} {[%emt 00:00:03]} 51. Qe7+ {[%clk 00:00:05]} Rf7 {[%clk
00:01:23]} 52. Qe5+ {[%clk 00:00:06]} {[%emt 00:00:01]} Qf6 {[%clk 00:01:24]}
53. Qxf6+ Kxf6 {[%clk 00:01:24]} 54. Rf1+ {[%clk 00:00:08]} {[%emt 00:00:01]}
Kg7 {[%clk 00:01:25]} {[%emt 00:00:01]} 55. Ra1 {[%clk 00:00:07]} {[%emt
00:00:03]} g5 {[%clk 00:01:26]} {[%emt 00:00:01]} 56. Ra6 {[%clk 00:00:08]} Rf6
{[%clk 00:01:27]} 57. Ra7+ {[%clk 00:00:10]} {[%emt 00:00:01]} Kg6 {[%clk
00:01:29]} 58. Ra8 {[%clk 00:00:11]} {[%emt 00:00:01]} h5 {[%clk 00:01:30]} 59.
Ra4 {[%clk 00:00:11]} {[%emt 00:00:02]} Re6 {[%clk 00:01:29]} {[%emt 00:00:03]}
60. Ra5 {[%clk 00:00:12]} {[%emt 00:00:01]} Rf6 {[%clk 00:01:28]} {[%emt
00:00:03]} 61. Rb5 {[%clk 00:00:13]} {[%emt 00:00:01]} Rf5 {[%clk 00:01:29]} 62.
Rb6+ {[%clk 00:00:14]} {[%emt 00:00:01]} Rf6 {[%clk 00:01:30]} 63. Rb5 {[%clk
00:00:16]} Ra6 {[%clk 00:01:29]} {[%emt 00:00:02]} 64. Rb2 {[%clk 00:00:17]}
{[%emt 00:00:01]} Ra5 {[%clk 00:01:30]} {[%emt 00:00:02]} 65. Rb6+ {[%clk
00:00:17]} {[%emt 00:00:01]} Kf5 {[%clk 00:01:31]} {[%emt 00:00:01]} 66. Rb2
{[%clk 00:00:18]} g4 {[%clk 00:01:31]} {[%emt 00:00:02]} 67. hxg4+ {[%clk
00:00:17]} {[%emt 00:00:04]} hxg4 {[%clk 00:01:31]} {[%emt 00:00:01]} 68. Kg2
{[%clk 00:00:17]} {[%emt 00:00:02]} Kf4 {[%clk 00:01:32]} {[%emt 00:00:02]} 69.
Rb4+ {[%clk 00:00:18]} {[%emt 00:00:01]} Kg5 {[%clk 00:01:33]} 70. Rb2 {[%clk
00:00:19]} {[%emt 00:00:01]} Ra3 {[%clk 00:01:34]} 71. Rc2 {[%clk 00:00:19]}
{[%emt 00:00:03]} Kh4 {[%clk 00:01:35]} {[%emt 00:00:01]} 72. Rb2 {[%clk
00:00:17]} {[%emt 00:00:03]} Rg3+ {[%clk 00:01:36]} {[%emt 00:00:01]} 73. Kh2
{[%clk 00:00:18]} Re3 {[%clk 00:01:37]} {[%emt 00:00:02]} 74. Kg2 {[%clk
00:00:18]} {[%emt 00:00:01]} g3 {[%clk 00:01:37]} {[%emt 00:00:03]} 1/2-1/2